fUST/lending_fUST_20240629
["ID","MTS","AMOUNT","RATE_DAILY","PERIOD"]
[330601160,1719609075907,-500.0,0.00024383,4]
[330601161,1719609075917,-1414.16,0.00024383,4]
[330601162,1719609075928,-514.41,0.00024383,4]
[330601163,1719609075937,-500.0,0.00024383,4]
[330601164,1719609075947,-549.62,0.00024383,4]
[330601165,1719609075956,-1020.77,0.00024383,4]
[330601166,1719609075966,-481.4653723,0.00024383,4]
[330601167,1719609075975,-2333.86,0.00024383,4]
[330601168,1719609075984,-500.0,0.00024383,4]
[330601169,1719609075993,-718.41,0.00024383,4]
[330601170,1719609076003,-632.14,0.00024383,4]
[330601171,1719609076014,-2254.28,0.00024383,4]
[330601172,1719609076024,-1134.77,0.00024383,4]
[330601173,1719609076034,-500.0,0.00024383,4]
[330601174,1719609076043,-500.0,0.00024383,4]
[330601175,1719609076055,-552.34,0.00024383,4]
[330601176,1719609076064,-655.59,0.00024383,4]
[330601177,1719609076074,-500.0,0.00024383,4]
[330601178,1719609076084,-500.0,0.00024383,4]
[330601179,1719609076217,-1584.44,0.00024383,4]
[330601180,1719609076227,-705.63,0.00024383,4]
[330601181,1719609076237,-284.44623225,0.00024383,4]
[330601182,1719609076247,-992.69,0.00024383,4]
[330601183,1719609076257,-963.94,0.00024383,4]
[330601184,1719609076266,-2618.52,0.00024383,4]
[330601185,1719609076276,-426.92647799,0.00024383,4]
[330601186,1719609076286,-775.03,0.00024383,4]
[330601187,1719609076296,-500.00007041,0.00024383,4]
[330601188,1719609076306,-500.0,0.00024383,4]
[330601189,1719609076316,-500.0,0.00024383,4]
[330601190,1719609076326,-1047.09,0.00024383,4]
[330601191,1719609076335,-500.0,0.00024383,4]
[330601192,1719609076345,-597.64,0.00024383,4]
[330601193,1719609076354,-500.0,0.00024383,4]
[330601194,1719609076364,-1602.1,0.00024383,4]
[330601195,1719609076374,-619.46,0.00024383,4]
[330601196,1719609076383,-500.0,0.00024383,4]
[330601197,1719609076393,-1252.86,0.00024383,4]
[330601198,1719609076402,-748.7,0.00024383,4]
[330601199,1719609076411,-500.0,0.00024383,4]
[330601200,1719609076421,-725.68,0.00024383,4]
[330601201,1719609076431,-500.0,0.00024383,4]
[330601202,1719609076441,-500.0,0.00024383,4]
[330601203,1719609076450,-3105.39,0.00024383,4]
[330601204,1719609076459,-500.0,0.00024383,4]
[330601205,1719609076468,-500.0,0.00024383,4]
[330601206,1719609076477,-1391.86,0.00024383,4]
[330601207,1719609076487,-500.0,0.00024383,4]
[330601208,1719609076496,-1221.39,0.00024383,4]
[330601209,1719609076506,-598.89,0.00024383,4]
[330601210,1719609076515,-621.6274748,0.00024383,4]
[330601211,1719609076524,-761.97,0.00024383,4]
[330601212,1719609076534,-500.0,0.00024383,4]
[330601213,1719609076543,-1916.95,0.00024383,4]
[330601214,1719609076553,-500.0,0.00024383,4]
[330601215,1719609076562,-500.0,0.00024383,4]
[330601216,1719609076571,-911.28,0.00024383,4]
[330601217,1719609076580,-500.0,0.00024383,4]
[330601218,1719609076590,-3430.95,0.00024383,4]
[330601219,1719609076599,-500.0,0.00024383,4]
[330601220,1719609076609,-1274.5,0.00024383,2]
[330601221,1719609076618,-786.07,0.00024383,4]
[330601222,1719609076628,-2096.46,0.00024383,4]
[330601223,1719609076638,-1472.43,0.00024383,4]
[330601224,1719609076648,-500.0,0.00024383,4]
[330601225,1719609076657,-32522.18,0.00024383,4]
[330601226,1719609076667,-500.0,0.00024383,4]
[330601227,1719609076676,-500.0,0.00024383,4]
[330601228,1719609076687,-713.1,0.00024383,4]
[330601229,1719609076696,-1080.39,0.00024383,4]
[330601230,1719609076705,-500.0,0.00024383,4]
[330601231,1719609076716,-2759.26,0.00024383,4]
[330601232,1719609076725,-1561.25,0.00024383,4]
[330601233,1719609076735,-1056.09,0.00024383,4]
[330601234,1719609076744,-500.0,0.00024383,4]
[330601235,1719609076754,-626.89,0.00024383,4]
[330601236,1719609076763,-644.23,0.00024383,4]
[330601237,1719609076773,-500.0,0.00024383,4]
[330601238,1719609076782,-919.74,0.00024383,4]
[330601239,1719609076792,-500.0,0.00024383,4]
[330601240,1719609076801,-500.0,0.00024383,4]
[330601241,1719609076810,-526.73,0.00024383,4]
[330601242,1719609076819,-500.0,0.00024383,4]
[330601243,1719609076829,-500.0,0.00024383,4]
[330601244,1719609076838,-900.52,0.00024383,4]
[330601245,1719609076847,-2915.15,0.00024383,4]
[330601246,1719609076855,-1075.26,0.00024383,4]
[330601247,1719609076865,-500.0,0.00024383,4]
[330601248,1719609076874,-2606.56,0.00024383,4]
[330601249,1719609076884,-898.0,0.00024383,4]
[330601250,1719609076894,-1017.0,0.00024383,4]
[330601251,1719609076903,-500.0,0.00024383,4]
[330601252,1719609076913,-769.17,0.00024383,4]
[330601253,1719609076922,-724.43,0.00024383,4]
[330601254,1719609076932,-500.0,0.00024383,4]
[330601255,1719609076941,-1811.19,0.00024383,4]
[330601256,1719609076950,-500.0,0.00024383,4]
[330601257,1719609076960,-500.0,0.00024383,4]
[330601258,1719609076969,-549.09434899,0.00024383,4]
[330601259,1719609076977,-555.14,0.00024383,4]
[330601260,1719609076987,-745.75,0.00024383,4]
[330601261,1719609076996,-1060.47,0.00024383,4]
[330601262,1719609077007,-1646.45,0.00024383,4]
[330601263,1719609077020,-561.23,0.00024383,4]
[330601264,1719609077029,-500.0,0.00024383,4]
[330601265,1719609077038,-210.2952736,0.00024383,4]
[330601266,1719609077047,-1636.48,0.00024383,4]
[330601267,1719609077058,-2903.41,0.00024383,4]
[330601268,1719609077068,-500.0,0.00024383,4]
[330601269,1719609077077,-882.01,0.00024383,4]
[330601270,1719609077088,-23113.58,0.00024383,4]
[330601271,1719609077097,-1643.03,0.00024383,4]
[330601272,1719609077107,-513.332425,0.00024383,4]
[330601273,1719609077116,-628.52,0.00024383,4]
[330601274,1719609077126,-1414.53,0.00024383,4]
[330601275,1719609077134,-500.0,0.00024383,4]
[330601276,1719609077144,-500.0,0.00024383,4]
[330601277,1719609077152,-500.0,0.00024383,4]
[330601278,1719609077161,-500.0,0.00024383,4]
[330601279,1719609077171,-11320.71,0.00024383,4]
[330601280,1719609077180,-555.85,0.00024383,4]
[330601281,1719609077189,-592.47473275,0.00024383,4]
[330601282,1719609077198,-644.76,0.00024383,4]
[330601283,1719609077208,-585.25,0.00024383,4]
[330601284,1719609077219,-756.94,0.00024383,4]
[330601285,1719609077228,-500.0,0.00024383,4]
[330601286,1719609077237,-1188.67,0.00024383,4]
[330601287,1719609077250,-500.0,0.00024383,4]
[330601288,1719609077259,-788.02,0.00024383,4]
[330601289,1719609077269,-1280.69,0.00024383,4]
[330601290,1719609077278,-500.0,0.00024383,4]
[330601291,1719609077287,-3712.0,0.00024383,4]
[330601292,1719609077296,-2279.24,0.00024383,4]
[330601293,1719609077306,-500.0,0.00024383,4]
[330601294,1719609077315,-500.0,0.00024383,4]
[330601295,1719609077324,-4032.61,0.00024383,4]
[330601296,1719609077333,-227.79,0.00024383,4]
[330601297,1719609077343,-1001.0,0.00024383,4]
[330601298,1719609077352,-2069.86,0.00024383,4]
[330601299,1719609077361,-500.0,0.00024383,4]
[330601300,1719609077370,-5418.01,0.00024383,4]
[330601301,1719609077379,-826.19,0.00024383,4]
[330601302,1719609077388,-803.14,0.00024383,4]
[330601303,1719609077397,-939.69,0.00024383,4]
[330601304,1719609077406,-60694.4,0.00024383,4]
[330601305,1719609077416,-2175.07,0.00024383,4]
[330601306,1719609077425,-3733.28,0.00024383,4]
[330601307,1719609077441,-7121.33,0.00024383,4]
[330601308,1719609077456,-500.0,0.00024383,4]
[330601309,1719609077470,-521.59,0.00024383,4]
[330601310,1719609077482,-834.09,0.00024383,4]
[330601311,1719609077494,-4094.82,0.00024383,4]
[330601312,1719609077509,-582.3,0.00024383,4]
[330601313,1719609077525,-689.13,0.00024383,4]
[330601314,1719609077540,-1575.66,0.00024383,4]
[330601315,1719609077554,-1770.99,0.00024383,4]
[330601316,1719609077567,-12345.82,0.00024383,4]
[330601317,1719609077580,-651.08,0.00024383,4]
[330601318,1719609077593,-548.85774048,0.00024383,4]
[330601319,1719609077606,-500.0,0.00024383,4]
[330601320,1719609077619,-500.0,0.00024383,4]
[330601321,1719609077629,-1018.4,0.00024383,4]
[330601322,1719609077642,-2468.56,0.00024383,4]
[330601323,1719609077657,-12723.98,0.00024383,4]
[330601324,1719609077671,-500.0,0.00024383,4]
[330601325,1719609077685,-1210.66,0.00024383,4]
[330601326,1719609077702,-500.0,0.00024383,2]
[330601327,1719609077716,-923.2,0.00024383,4]
[330601328,1719609077727,-2010.28,0.00024383,4]
[330601329,1719609077738,-4814.91,0.00024383,4]
[330601330,1719609077751,-11513.48,0.00024383,4]
[330601331,1719609077766,-210.31929875,0.00024383,4]
[330601332,1719609077777,-506.2,0.00024383,4]
[330601333,1719609077790,-10418.44,0.00024383,4]
[330601334,1719609077802,-500.0,0.00024383,4]
[330601335,1719609077814,-500.0,0.00024383,4]
[330601336,1719609077827,-500.0,0.00024383,4]
[330601337,1719609077838,-500.0,0.00024383,4]
[330601338,1719609077850,-500.0,0.00024383,4]
[330601339,1719609077862,-959.34,0.00024383,4]
[330601340,1719609077874,-655.11,0.00024383,4]
[330601341,1719609077887,-1894.29,0.00024383,4]
[330601342,1719609077898,-1813.93,0.00024383,4]
[330601343,1719609077910,-500.0,0.00024383,4]
[330601344,1719609077921,-1715.47,0.00024383,4]
[330601345,1719609077933,-1262.66,0.00024383,4]
[330601346,1719609077945,-500.0,0.00024383,4]
[330601347,1719609077958,-2194.15,0.00024383,4]
[330601348,1719609077970,-761.05,0.00024383,4]
[330601349,1719609077982,-535.3,0.00024383,4]
[330601350,1719609077994,-1055.6,0.00024383,4]
[330601351,1719609078006,-1710.79,0.00024383,4]
[330601352,1719609078022,-500.0,0.00024383,4]
[330601353,1719609078034,-528.59,0.00024383,4]
[330601354,1719609078047,-979.7,0.00024383,4]
[330601355,1719609078059,-500.0,0.00024383,4]
[330601356,1719609078071,-628.71,0.00024383,4]
[330601357,1719609078083,-750.32,0.00024383,4]
[330601358,1719609078098,-1021.86,0.00024383,4]
[330601359,1719609078109,-500.0,0.00024383,4]
[330601360,1719609078120,-586.77,0.00024383,4]
[330601361,1719609078131,-500.0,0.00024383,4]
[330601362,1719609078142,-10772.11,0.00024383,4]
[330601363,1719609078154,-740.26,0.00024383,4]
[330601364,1719609078165,-1018.02,0.00024383,4]
[330601365,1719609078176,-3099.44,0.00024383,4]
[330601366,1719609078188,-1461.16,0.00024383,4]
[330601367,1719609078199,-4038.76,0.00024383,4]
[330601368,1719609078211,-2850.21,0.00024383,4]
[330601369,1719609078223,-500.0,0.00024383,4]
[330601370,1719609078234,-669.76,0.00024383,4]
[330601371,1719609078246,-546.35,0.00024383,4]
[330601372,1719609078257,-500.0,0.00024383,4]
[330601373,1719609078268,-600.27,0.00024383,4]
[330601374,1719609078280,-500.0,0.00024383,4]
[330601375,1719609078291,-4987.38,0.00024383,4]
[330601376,1719609078302,-500.0,0.00024383,4]
[330601377,1719609078314,-3352.17,0.00024383,4]
[330601378,1719609078325,-621.88,0.00024383,4]
[330601379,1719609078336,-683.47,0.00024383,4]
[330601380,1719609078347,-1525.02,0.00024383,4]
[330601381,1719609078358,-23476.31,0.00024383,4]
[330601382,1719609078369,-500.0,0.00024383,4]
[330601383,1719609078380,-6462.45,0.00024383,4]
[330601384,1719609078392,-500.0,0.00024383,4]
[330601385,1719609078404,-9156.13,0.00024383,4]
[330601386,1719609078415,-1587.41,0.00024383,4]
[330601387,1719609078427,-500.0,0.00024383,4]
[330601388,1719609078438,-2718.89,0.00024383,4]
[330601389,1719609078450,-1320.21,0.00024383,4]
[330601390,1719609078462,-449.45145023,0.00024386,2]
[330601391,1719609078473,-15000.0,0.000244,2]
[330601392,1719609078485,-456.17924659,0.00024435,2]
[330601393,1719609078496,-450.0,0.00024435,2]
[330601394,1719609078508,-166.666666,0.00024482,2]
[330601395,1719609078520,-2000.0,0.000246,2]
[330601396,1719609078532,-2000.0,0.000246,2]
[330601397,1719609078543,-500.0,0.00024657,2]
[330601398,1719609078554,-500.0,0.00024657,4]
[330601399,1719609078566,-1053.33,0.00024657,4]
[330601400,1719609078577,-500.0,0.00024657,4]
[330601401,1719609078589,-581.35,0.00024657,4]
[330601402,1719609078600,-500.0,0.00024657,4]
[330601403,1719609078612,-500.0,0.00024657,4]
[330601404,1719609078623,-565.72180037,0.00024657,2]
[330601405,1719609078634,-2317.09,0.00024657,4]
[330601406,1719609078645,-922.96,0.00024657,4]
[330601407,1719609078656,-834.68,0.00024657,4]
[330601408,1719609078668,-467.507745,0.00024657,4]
[330601409,1719609078679,-500.0,0.00024657,4]
[330601410,1719609078691,-500.0,0.00024657,4]
[330601411,1719609078702,-500.0,0.00024657,4]
[330601412,1719609078714,-500.0,0.00024657,4]
[330601413,1719609078726,-500.0,0.00024657,4]
[330601414,1719609078737,-500.0,0.00024657,4]
[330601415,1719609078748,-325.42183683,0.00024657,4]
[330601416,1719609078760,-500.0,0.00024657,4]
[330601417,1719609078772,-500.0,0.00024657,4]
[330601418,1719609078783,-803.38,0.00024657,4]
[330601419,1719609078795,-500.0,0.00024657,4]
[330601420,1719609078806,-1513.65,0.00024657,4]
[330601421,1719609078817,-500.0,0.00024657,4]
[330601422,1719609078828,-969.26,0.00024657,4]
[330601423,1719609078839,-1279.12,0.00024657,4]
[330601424,1719609078851,-580.44,0.00024657,4]
[330601425,1719609078862,-750.55,0.00024657,4]
[330601426,1719609078873,-527.85,0.00024657,4]
[330601427,1719609078884,-762.9,0.00024657,4]
[330601428,1719609078896,-500.0,0.00024657,4]
[330601429,1719609078907,-500.0,0.00024657,4]
[330601430,1719609078918,-794.3,0.00024657,4]
[330601431,1719609078929,-500.0,0.00024657,4]
[330601432,1719609078940,-212.87849475,0.00024657,4]
[330601433,1719609078952,-500.0,0.00024657,4]
[330601434,1719609078964,-474.56449923,0.00024657,4]
[330601435,1719609078975,-526.04,0.00024657,4]
[330601436,1719609079188,-819.47,0.00024657,4]
[330601437,1719609079199,-905.98,0.00024657,4]
[330601438,1719609079209,-500.0,0.00024657,4]
[330601439,1719609079218,-500.0,0.00024657,4]
[330601440,1719609079227,-1589.77,0.00024657,4]
[330601441,1719609079236,-432.37545082,0.00024657,4]
[330601442,1719609079247,-1414.16,0.00024657,4]
[330601443,1719609079257,-514.41,0.00024657,4]
[330601444,1719609079267,-500.0,0.00024657,4]
[330601445,1719609079277,-549.62,0.00024657,4]
[330601446,1719609079287,-1020.77,0.00024657,4]
[330601447,1719609079295,-2333.86,0.00024657,4]
[330601448,1719609079305,-560.51163777,0.00024657,4]
[330601449,1719609079314,-718.41,0.00024657,4]
[330601450,1719609079323,-632.14,0.00024657,4]
[330601451,1719609079333,-2254.28,0.00024657,4]
[330601452,1719609079342,-1134.77,0.00024657,4]
[330601453,1719609079352,-500.0,0.00024657,4]
[330601454,1719609079361,-500.0,0.00024657,4]
[330601455,1719609079370,-552.34,0.00024657,4]
[330601456,1719609079380,-655.59,0.00024657,4]
[330601457,1719609079389,-500.0,0.00024657,4]
[330601458,1719609079399,-500.0,0.00024657,4]
[330601459,1719609079408,-1584.44,0.00024657,4]
[330601460,1719609079416,-705.63,0.00024657,4]
[330601461,1719609079425,-992.69,0.00024657,4]
[330601462,1719609079435,-963.94,0.00024657,4]
[330601463,1719609079444,-2618.52,0.00024657,4]
[330601464,1719609079454,-775.03,0.00024657,4]
[330601465,1719609079464,-500.0,0.00024657,4]
[330601466,1719609079473,-500.0,0.00024657,4]
[330601467,1719609079482,-1047.09,0.00024657,4]
[330601468,1719609079492,-154.58690063,0.00024657,4]
[330601469,1719609079501,-597.64,0.00024657,4]
[330601470,1719609079510,-500.0,0.00024657,4]
[330601471,1719609079519,-1602.1,0.00024657,4]
[330601472,1719609079528,-619.46,0.00024657,4]
[330601473,1719609079537,-500.0,0.00024657,4]
[330601474,1719609079546,-1252.86,0.00024657,4]
[330601475,1719609079555,-748.7,0.00024657,4]
[330601476,1719609079565,-500.0,0.00024657,4]
[330601477,1719609079574,-725.68,0.00024657,4]
[330601478,1719609079584,-500.0,0.00024657,4]
[330601479,1719609079592,-500.0,0.00024657,4]
[330601480,1719609079602,-3105.39,0.00024657,4]
[330601481,1719609079611,-500.0,0.00024657,4]
[330601482,1719609079620,-500.0,0.00024657,4]
[330601483,1719609079629,-1391.86,0.00024657,4]
[330601484,1719609079639,-500.0,0.00024657,4]
[330601485,1719609079647,-1221.39,0.00024657,4]
[330601486,1719609079656,-598.89,0.00024657,4]
[330601487,1719609079666,-761.97,0.00024657,4]
[330601488,1719609079675,-500.0,0.00024657,4]
[330601489,1719609079684,-500.0,0.00024657,4]
[330601490,1719609079693,-1916.95,0.00024657,4]
[330601491,1719609079703,-500.0,0.00024657,4]
[330601492,1719609079713,-500.0,0.00024657,4]
[330601493,1719609079722,-911.28,0.00024657,4]
[330601494,1719609079731,-3430.95,0.00024657,4]
[330601495,1719609079740,-500.0,0.00024657,4]
[330601496,1719609079750,-1274.5,0.00024657,2]
[330601497,1719609079760,-786.07,0.00024657,4]
[330601498,1719609079769,-2096.46,0.00024657,4]
[330601499,1719609079778,-1472.43,0.00024657,4]
[330601500,1719609079788,-500.0,0.00024657,4]
[330601501,1719609079798,-32522.18,0.00024657,4]
[330601502,1719609079808,-500.0,0.00024657,4]
[330601503,1719609079818,-500.0,0.00024657,4]
[330601504,1719609079827,-713.1,0.00024657,4]
[330601505,1719609079836,-1080.39,0.00024657,4]
[330601506,1719609079845,-500.0,0.00024657,4]
[330601507,1719609079855,-2759.26,0.00024657,4]
[330601508,1719609079865,-1561.25,0.00024657,4]
[330601509,1719609079874,-1056.09,0.00024657,4]
[330601510,1719609079883,-500.0,0.00024657,4]
[330601511,1719609079892,-626.89,0.00024657,4]
[330601512,1719609079901,-644.23,0.00024657,4]
[330601513,1719609079911,-500.0,0.00024657,4]
[330601514,1719609079920,-919.74,0.00024657,4]
[330601515,1719609079929,-500.0,0.00024657,4]
[330601516,1719609079938,-196.92807056,0.00024657,4]
[330601517,1719609079948,-526.73,0.00024657,4]
[330601518,1719609079959,-500.0,0.00024657,4]
[330601519,1719609079968,-500.0,0.00024657,4]
[330601520,1719609079977,-900.52,0.00024657,4]
[330601521,1719609079986,-2915.15,0.00024657,4]
[330601522,1719609079995,-1075.26,0.00024657,4]
[330601523,1719609080006,-500.0,0.00024657,4]
[330601524,1719609080019,-2606.56,0.00024657,4]
[330601525,1719609080028,-898.0,0.00024657,4]
[330601526,1719609080037,-1017.0,0.00024657,4]
[330601527,1719609080047,-500.0,0.00024657,4]
[330601528,1719609080057,-769.17,0.00024657,4]
[330601529,1719609080067,-724.43,0.00024657,4]
[330601530,1719609080077,-500.0,0.00024657,4]
[330601531,1719609080088,-1811.19,0.00024657,4]
[330601532,1719609080103,-500.0,0.00024657,4]
[330601533,1719609080112,-500.0,0.00024657,4]
[330601534,1719609080121,-555.14,0.00024657,4]
[330601535,1719609080130,-745.75,0.00024657,4]
[330601536,1719609080139,-1060.47,0.00024657,4]
[330601537,1719609080148,-1646.45,0.00024657,4]
[330601538,1719609080157,-561.23,0.00024657,4]
[330601539,1719609080166,-500.0,0.00024657,4]
[330601540,1719609080175,-1636.48,0.00024657,4]
[330601541,1719609080184,-2903.41,0.00024657,4]
[330601542,1719609080193,-500.0,0.00024657,4]
[330601543,1719609080202,-882.01,0.00024657,4]
[330601544,1719609080212,-23113.58,0.00024657,4]
[330601545,1719609080221,-1643.03,0.00024657,4]
[330601546,1719609080229,-628.52,0.00024657,4]
[330601547,1719609080239,-1414.53,0.00024657,4]
[330601548,1719609080248,-500.0,0.00024657,4]
[330601549,1719609080257,-500.0,0.00024657,4]
[330601550,1719609080267,-500.0,0.00024657,4]
[330601551,1719609080276,-500.0,0.00024657,4]
[330601552,1719609080286,-11320.71,0.00024657,4]
[330601553,1719609080295,-555.85,0.00024657,4]
[330601554,1719609080304,-644.76,0.00024657,4]
[330601555,1719609080313,-585.25,0.00024657,4]
[330601556,1719609080322,-756.94,0.00024657,4]
[330601557,1719609080332,-500.0,0.00024657,4]
[330601558,1719609080342,-1188.67,0.00024657,4]
[330601559,1719609080351,-500.0,0.00024657,4]
[330601560,1719609080360,-788.02,0.00024657,4]
[330601561,1719609080370,-1280.69,0.00024657,4]
[330601562,1719609080379,-500.0,0.00024657,4]
[330601563,1719609080388,-3712.0,0.00024657,4]
[330601564,1719609080397,-2279.24,0.00024657,4]
[330601565,1719609080406,-500.0,0.00024657,4]
[330601566,1719609080415,-500.0,0.00024657,4]
[330601567,1719609080424,-4032.61,0.00024657,4]
[330601568,1719609080433,-227.79,0.00024657,4]
[330601569,1719609080442,-1001.0,0.00024657,4]
[330601570,1719609080451,-2069.86,0.00024657,4]
[330601571,1719609080463,-500.0,0.00024657,4]
[330601572,1719609080474,-5418.01,0.00024657,4]
[330601573,1719609080484,-826.19,0.00024657,4]
[330601574,1719609080493,-803.14,0.00024657,4]
[330601575,1719609080502,-939.69,0.00024657,4]
[330601576,1719609080510,-60694.4,0.00024657,4]
[330601577,1719609080519,-2175.07,0.00024657,4]
[330601578,1719609080528,-3733.28,0.00024657,4]
[330601579,1719609080537,-7121.33,0.00024657,4]
[330601580,1719609080546,-500.0,0.00024657,4]
[330601581,1719609080554,-521.59,0.00024657,4]
[330601582,1719609080563,-4094.82,0.00024657,4]
[330601583,1719609080572,-582.3,0.00024657,4]
[330601584,1719609080580,-689.13,0.00024657,4]
[330601585,1719609080589,-834.09,0.00024657,4]
[330601586,1719609080598,-1575.66,0.00024657,4]
[330601587,1719609080607,-1770.99,0.00024657,4]
[330601588,1719609080616,-12345.82,0.00024657,4]
[330601589,1719609080625,-651.08,0.00024657,4]
[330601590,1719609080634,-500.0,0.00024657,4]
[330601591,1719609080643,-500.0,0.00024657,4]
[330601592,1719609080652,-1018.4,0.00024657,4]
[330601593,1719609080661,-2468.56,0.00024657,4]
[330601594,1719609080671,-12723.98,0.00024657,4]
[330601595,1719609080680,-500.0,0.00024657,4]
[330601596,1719609080689,-1210.66,0.00024657,4]
[330601597,1719609080698,-500.0,0.00024657,2]
[330601598,1719609080707,-923.2,0.00024657,4]
[330601599,1719609080720,-2010.28,0.00024657,4]
[330601600,1719609080729,-4814.91,0.00024657,4]
[330601601,1719609080739,-11513.48,0.00024657,4]
[330601602,1719609080748,-506.2,0.00024657,4]
[330601603,1719609080757,-10418.44,0.00024657,4]
[330601604,1719609080766,-500.0,0.00024657,4]
[330601605,1719609080775,-500.0,0.00024657,4]
[330601606,1719609080784,-227.13540739,0.00024657,4]
[330601607,1719609080793,-500.0,0.00024657,4]
[330601608,1719609080802,-500.0,0.00024657,4]
[330601609,1719609080811,-959.34,0.00024657,4]
[330601610,1719609080820,-655.11,0.00024657,4]
[330601611,1719609080829,-1813.93,0.00024657,4]
[330601612,1719609080839,-1894.29,0.00024657,4]
[330601613,1719609080848,-500.0,0.00024657,4]
[330601614,1719609080857,-1715.47,0.00024657,4]
[330601615,1719609080867,-1262.66,0.00024657,4]
[330601616,1719609080876,-500.0,0.00024657,4]
[330601617,1719609080885,-761.05,0.00024657,4]
[330601618,1719609080895,-2194.15,0.00024657,4]
[330601619,1719609080904,-535.3,0.00024657,4]
[330601620,1719609080913,-1055.6,0.00024657,4]
[330601621,1719609080922,-1710.79,0.00024657,4]
[330601622,1719609080932,-500.0,0.00024657,4]
[330601623,1719609080941,-528.59,0.00024657,4]
[330601624,1719609080952,-979.7,0.00024657,4]
[330601625,1719609080962,-472.26915984,0.00024657,4]
[330601626,1719609080971,-628.71,0.00024657,4]
[330601627,1719609080980,-750.32,0.00024657,4]
[330601628,1719609080990,-1021.86,0.00024657,4]
[330601629,1719609080999,-500.0,0.00024657,4]
[330601630,1719609081009,-586.77,0.00024657,4]
[330601631,1719609081023,-500.0,0.00024657,4]
[330601632,1719609081033,-10772.11,0.00024657,4]
[330601633,1719609081042,-740.26,0.00024657,4]
[330601634,1719609081053,-1018.02,0.00024657,4]
[330601635,1719609081063,-3099.44,0.00024657,4]
[330601636,1719609081073,-500.0,0.00024657,4]
[330601637,1719609081083,-4038.76,0.00024657,4]
[330601638,1719609081093,-1461.16,0.00024657,4]
[330601639,1719609081102,-2850.21,0.00024657,4]
[330601640,1719609081112,-669.76,0.00024657,4]
[330601641,1719609081121,-546.35,0.00024657,4]
[330601642,1719609081131,-500.0,0.00024657,4]
[330601643,1719609081140,-600.27,0.00024657,4]
[330601644,1719609081149,-500.0,0.00024657,4]
[330601645,1719609081158,-4987.38,0.00024657,4]
[330601646,1719609081167,-500.0,0.00024657,4]
[330601647,1719609081176,-3352.17,0.00024657,4]
[330601648,1719609081185,-621.88,0.00024657,4]
[330601649,1719609081194,-683.47,0.00024657,4]
[330601650,1719609081203,-1525.02,0.00024657,4]
[330601651,1719609081212,-23476.31,0.00024657,4]
[330601652,1719609081221,-200.0,0.00024657,7]
[330601653,1719609081231,-200.0,0.00024657,7]
[330601654,1719609081240,-200.0,0.00024657,7]
[330601655,1719609081250,-200.0,0.00024657,7]
[330601656,1719609081259,-200.0,0.00024657,7]
[330601657,1719609081268,-200.0,0.00024657,7]
[330601658,1719609081277,-500.0,0.00024657,4]
[330601659,1719609081287,-200.0,0.00024657,7]